fUSD/lending_fUSD_20250716
["ID","MTS","AMOUNT","RATE_DAILY","PERIOD"]
[372496235,1752663086179,-460.0,0.00022191,2]
[372496236,1752663086189,-460.0,0.00022191,2]
[372496237,1752663086199,-1075.31,0.00022191,2]
[372496238,1752663086209,-10262.44,0.00022191,2]
[372496239,1752663086219,-460.0,0.00022191,2]
[372496240,1752663086230,-7641.39,0.00022191,2]
[372496241,1752663086240,-927.79,0.00022191,2]
[372496242,1752663086249,-460.0,0.00022191,2]
[372496243,1752663086259,-9009.22,0.00022191,2]
[372496244,1752663086269,-460.0,0.00022191,2]
[372496245,1752663086279,-460.0,0.00022191,2]
[372496246,1752663086288,-460.0,0.00022191,2]
[372496247,1752663086298,-341.19277733,0.00022191,2]
[372496248,1752663086307,-1305.47,0.00022191,2]
[372496249,1752663086318,-6402.79,0.00022191,2]
[372496250,1752663086334,-999.84,0.00022191,2]
[372496251,1752663086347,-1048.05,0.00022191,2]
[372496252,1752663086357,-1145.26,0.00022191,2]
[372496253,1752663086367,-1618.81,0.00022191,2]
[372496254,1752663086377,-1101.08,0.00022191,2]
[372496255,1752663086387,-7522.89,0.00022191,2]
[372496256,1752663086397,-1085.51,0.00022191,2]
[372496257,1752663086407,-460.0,0.00022191,2]
[372496258,1752663086416,-985.55,0.00022191,2]
[372496259,1752663086426,-460.0,0.00022191,2]
[372496260,1752663086436,-7023.53,0.00022191,2]
[372496261,1752663086446,-699.45,0.00022191,2]
[372496262,1752663086455,-460.0,0.00022191,2]
[372496263,1752663086465,-4907.65,0.00022191,2]
[372496264,1752663086475,-460.0,0.00022191,2]
[372496265,1752663086485,-460.0,0.00022191,2]
[372496266,1752663086495,-4103.12,0.00022191,2]
[372496267,1752663086506,-460.0,0.00022191,2]
[372496268,1752663086515,-587.29,0.00022191,2]
[372496269,1752663086525,-805.39,0.00022191,2]
[372496270,1752663086535,-2334.85,0.00022191,2]
[372496271,1752663086544,-460.0,0.00022191,2]
[372496272,1752663086554,-1300.92,0.00022191,2]
[372496273,1752663086564,-1839.74,0.00022191,2]
[372496274,1752663086574,-7022.82,0.00022191,2]
[372496275,1752663086583,-460.0,0.00022191,2]
[372496276,1752663086593,-460.0,0.00022191,2]
[372496277,1752663086603,-460.0,0.00022191,2]
[372496278,1752663086612,-460.0,0.00022191,2]
[372496279,1752663086622,-4783.75,0.00022191,2]
[372496280,1752663086631,-460.0,0.00022191,2]
[372496281,1752663086641,-574.7,0.00022191,2]
[372496282,1752663086650,-460.0,0.00022191,2]
[372496283,1752663086660,-11831.05,0.00022191,2]
[372496284,1752663086672,-5175.99,0.00022191,2]
[372496285,1752663086682,-460.0,0.00022191,2]
[372496286,1752663086693,-2063.66,0.00022191,2]
[372496287,1752663086704,-12650.62,0.00022191,2]
[372496288,1752663086713,-787.25,0.00022191,2]
[372496289,1752663086723,-609.0,0.00022191,2]
[372496290,1752663086732,-1721.09,0.00022191,2]
[372496291,1752663086742,-641.88,0.00022191,2]
[372496292,1752663086752,-460.0,0.00022191,2]
[372496293,1752663086761,-460.0,0.00022191,2]
[372496294,1752663086771,-2321.93,0.00022191,2]
[372496295,1752663086780,-460.0,0.00022191,2]
[372496296,1752663086789,-460.0,0.00022191,2]
[372496297,1752663086799,-647.56,0.00022191,2]
[372496298,1752663086809,-460.0,0.00022191,2]
[372496299,1752663086819,-1046.05,0.00022191,2]
[372496300,1752663086829,-25853.72,0.00022191,2]
[372496301,1752663086839,-460.0,0.00022191,2]
[372496302,1752663086849,-2399.4,0.00022191,2]
[372496303,1752663086858,-1196.04,0.00022191,2]
[372496304,1752663086869,-5256.36,0.00022191,2]
[372496305,1752663086879,-570.67,0.00022191,2]
[372496306,1752663086891,-460.0,0.00022191,2]
[372496307,1752663086901,-460.0,0.00022191,2]
[372496308,1752663086911,-1199.05,0.00022191,2]
[372496309,1752663086923,-1873.93,0.00022191,2]
[372496310,1752663086933,-6048.28,0.00022191,2]
[372496311,1752663086943,-608.82,0.00022191,2]
[372496312,1752663086954,-460.0,0.00022191,2]
[372496313,1752663086965,-460.0,0.00022191,2]
[372496314,1752663086975,-460.0,0.00022191,2]
[372496315,1752663086984,-460.0,0.00022191,2]
[372496316,1752663086996,-3826.55,0.00022191,2]
[372496317,1752663087006,-679.82,0.00022191,2]
[372496318,1752663087016,-462.9210491,0.00022191,2]
[372496319,1752663087026,-644.0,0.00022191,2]
[372496320,1752663087035,-460.0,0.00022191,2]
[372496321,1752663087045,-4984.48,0.00022191,2]
[372496322,1752663087055,-1010.1,0.00022191,2]
[372496323,1752663087065,-587.74,0.00022191,2]
[372496324,1752663087075,-2707.25,0.00022191,2]
[372496325,1752663087085,-1216.26,0.00022191,2]
[372496326,1752663087095,-2657.96,0.00022191,2]
[372496327,1752663087104,-2675.67,0.00022191,2]
[372496328,1752663087114,-1531.63,0.00022191,2]
[372496329,1752663087124,-460.0,0.00022191,2]
[372496330,1752663087134,-460.0,0.00022191,2]
[372496331,1752663087143,-807.97,0.00022191,2]
[372496332,1752663087153,-460.0,0.00022191,2]
[372496333,1752663087162,-10398.73,0.00022191,2]
[372496334,1752663087172,-2892.99,0.00022191,2]
[372496335,1752663087184,-6155.9,0.00022191,2]
[372496336,1752663087194,-460.0,0.00022191,2]
[372496337,1752663087204,-3663.1,0.00022191,2]
[372496338,1752663087215,-460.0,0.00022191,2]
[372496339,1752663087231,-783.37,0.00022191,2]
[372496340,1752663087241,-2417.79,0.00022191,2]
[372496341,1752663087251,-1645.27,0.00022191,2]
[372496342,1752663087261,-5760.76,0.00022191,2]
[372496343,1752663087271,-512.70402065,0.00022191,2]
[372496344,1752663087281,-1156.71,0.00022191,2]
[372496345,1752663087290,-2977.53,0.00022191,2]
[372496346,1752663087300,-4994.77,0.00022191,2]
[372496347,1752663087310,-2707.06,0.00022191,2]
[372496348,1752663087319,-828.48,0.00022191,2]
[372496349,1752663087329,-697.34,0.00022191,2]
[372496350,1752663087339,-1737.41,0.00022191,2]
[372496351,1752663087350,-1860.1,0.00022191,2]
[372496352,1752663087361,-618.42,0.00022191,2]
[372496353,1752663087371,-3082.79,0.00022191,2]
[372496354,1752663087381,-465.32096788,0.00022191,2]
[372496355,1752663087391,-763.37,0.00022191,2]
[372496356,1752663087401,-460.0,0.00022191,2]
[372496357,1752663087410,-5360.04,0.00022191,2]
[372496358,1752663087420,-1544.88,0.00022191,2]
[372496359,1752663087430,-497.08596609,0.00022191,2]
[372496360,1752663087439,-532.67,0.00022191,2]
[372496361,1752663087449,-566.67,0.00022191,2]
[372496362,1752663087458,-1351.27,0.00022191,2]
[372496363,1752663087468,-6960.91,0.00022191,2]
[372496364,1752663087477,-1854.73,0.00022191,2]
[372496365,1752663087487,-1871.79,0.00022191,2]
[372496366,1752663087497,-469.68986151,0.00022191,2]
[372496367,1752663087507,-498.31,0.00022191,2]
[372496368,1752663087517,-3727.42,0.00022191,2]
[372496369,1752663087527,-935.71,0.00022191,2]
[372496370,1752663087537,-2952.62,0.00022191,2]
[372496371,1752663087546,-1210.46,0.00022191,2]
[372496372,1752663087558,-460.0,0.00022191,2]
[372496373,1752663087567,-4520.63,0.00022191,2]
[372496374,1752663087578,-1354.22,0.00022191,2]
[372496375,1752663087588,-647.88,0.00022191,2]
[372496376,1752663087599,-460.0,0.00022191,2]
[372496377,1752663087608,-1674.69,0.00022191,2]
[372496378,1752663087618,-460.0,0.00022191,2]
[372496379,1752663087629,-1807.76,0.00022191,2]
[372496380,1752663087638,-544.05,0.00022191,2]
[372496381,1752663087647,-1562.68,0.00022191,2]
[372496382,1752663087657,-804.49,0.00022191,2]
[372496383,1752663087666,-460.0,0.00022191,2]
[372496384,1752663087677,-460.0,0.00022191,2]
[372496385,1752663087686,-4930.79,0.00022191,2]
[372496386,1752663087695,-619.88,0.00022191,2]
[372496387,1752663087706,-460.0,0.00022191,2]
[372496388,1752663087715,-460.0,0.00022191,2]
[372496389,1752663087725,-2967.28,0.00022191,2]
[372496390,1752663087734,-460.0,0.00022191,2]
[372496391,1752663087743,-1331.59,0.00022191,2]
[372496392,1752663087753,-1756.27,0.00022191,2]
[372496393,1752663087762,-460.0,0.00022191,2]
[372496394,1752663087772,-3471.77,0.00022191,2]
[372496395,1752663087781,-1372.2,0.00022191,2]
[372496396,1752663087791,-2884.75,0.00022191,2]
[372496397,1752663087801,-4338.23,0.00022191,2]
[372496398,1752663087811,-1048.9,0.00022191,2]
[372496399,1752663087820,-1304.13,0.00022191,2]
[372496400,1752663087830,-525.50841903,0.00022191,2]
[372496401,1752663087840,-2011.92,0.00022191,2]
[372496402,1752663087850,-460.0,0.00022191,2]
[372496403,1752663087862,-460.0,0.00022191,2]
[372496404,1752663087873,-5916.53,0.00022191,2]
[372496405,1752663087883,-861.69,0.00022191,2]
[372496406,1752663087893,-589.94,0.00022191,2]
[372496407,1752663087903,-460.0,0.00022191,2]
[372496408,1752663087913,-771.65,0.00022191,2]
[372496409,1752663088254,-469.09,0.00022191,2]
[372496410,1752663088288,-460.0,0.00022191,2]
[372496411,1752663088299,-18520.14,0.00022191,2]
[372496412,1752663088309,-460.0,0.00022191,2]
[372496413,1752663088319,-2080.47,0.00022191,2]
[372496414,1752663088328,-1896.91,0.00022191,2]
[372496415,1752663088338,-1000.0,0.00022191,2]
[372496416,1752663088347,-1267.95,0.00022191,2]
[372496417,1752663088357,-6378.4,0.00022191,2]
[372496418,1752663088367,-504.88695897,0.00022191,2]
[372496419,1752663088376,-492.15891056,0.00022191,2]
[372496420,1752663088386,-460.0,0.00022191,2]
[372496421,1752663088396,-624.77,0.00022191,2]
[372496422,1752663088404,-6594.98,0.00022191,2]
[372496423,1752663088414,-1113.8,0.00022191,2]
[372496424,1752663088423,-4665.3,0.00022191,2]
[372496425,1752663088434,-4540.32,0.00022191,2]
[372496426,1752663088444,-9546.24,0.00022191,2]
[372496427,1752663088455,-460.0,0.00022191,2]
[372496428,1752663088465,-4658.6,0.00022191,2]
[372496429,1752663088474,-460.0,0.00022191,2]
[372496430,1752663088485,-460.0,0.00022191,2]
[372496431,1752663088496,-452.11287642,0.00022191,2]
[372496432,1752663088505,-575.28,0.00022191,2]
[372496433,1752663088515,-1746.59,0.00022191,2]
[372496434,1752663088525,-2605.38,0.00022191,2]
[372496435,1752663088534,-460.0,0.00022191,2]
[372496436,1752663088544,-484.92,0.00022191,2]
[372496437,1752663088553,-2501.59,0.00022191,2]
[372496438,1752663088563,-7774.07,0.00022191,2]
[372496439,1752663088573,-570.76,0.00022191,2]
[372496440,1752663088583,-460.0,0.00022191,2]
[372496441,1752663088593,-2763.84,0.00022191,2]
[372496442,1752663088603,-267.73806286,0.00022191,2]
[372496443,1752663088612,-5927.89,0.00022191,2]
[372496444,1752663088622,-3322.94,0.00022191,2]
[372496445,1752663088632,-460.0,0.00022191,2]
[372496446,1752663088642,-460.0,0.00022191,2]
[372496447,1752663088653,-157.16579747,0.00022191,2]
[372496448,1752663088662,-1367.25,0.00022191,2]
[372496449,1752663088672,-7494.33,0.00022191,2]
[372496450,1752663088682,-1011.46,0.00022191,2]
[372496451,1752663088692,-16963.12,0.00022191,2]
[372496452,1752663088702,-187.54737149,0.00022191,2]
[372496453,1752663088712,-2065.11,0.00022191,2]
[372496454,1752663088722,-5953.02,0.00022191,2]
[372496455,1752663088731,-3212.42,0.00022191,2]
[372496456,1752663088742,-2587.67,0.00022191,2]
[372496457,1752663088752,-21344.53,0.00022191,2]
[372496458,1752663088762,-1014.23,0.00022191,2]
[372496459,1752663088771,-5650.16,0.00022191,2]
[372496460,1752663088781,-476.32,0.00022191,2]
[372496461,1752663088791,-4486.27,0.00022191,2]
[372496462,1752663088801,-5415.43,0.00022191,2]
[372496463,1752663088811,-460.0,0.00022191,2]
[372496464,1752663088820,-460.0,0.00022191,2]
[372496465,1752663088830,-1538.9,0.00022191,2]
[372496466,1752663088839,-635.25,0.00022191,2]
[372496467,1752663088849,-2685.11,0.00022191,2]
[372496468,1752663088859,-2744.51,0.00022191,2]
[372496469,1752663088869,-1047.77,0.00022191,2]
[372496470,1752663088879,-460.0,0.00022191,2]
[372496471,1752663088889,-1189.82,0.00022191,2]
[372496472,1752663088899,-802.61,0.00022191,2]
[372496473,1752663088909,-460.0,0.00022191,2]
[372496474,1752663088919,-504.66,0.00022191,2]
[372496475,1752663088929,-1356.57,0.00022191,2]
[372496476,1752663088939,-460.0,0.00022191,2]
[372496477,1752663088949,-573.37,0.00022191,2]
[372496478,1752663088959,-8020.77,0.00022191,2]
[372496479,1752663088969,-5279.75,0.00022191,2]
[372496480,1752663088978,-1204.94,0.00022191,2]
[372496481,1752663088988,-460.0,0.00022191,2]
[372496482,1752663088998,-3572.47,0.00022191,2]
[372496483,1752663089007,-460.0,0.00022191,2]
[372496484,1752663089017,-32484.29,0.00022191,2]
[372496485,1752663089027,-676.02,0.00022191,2]
[372496486,1752663089036,-1007.81,0.00022191,2]
[372496487,1752663089046,-19195.94,0.00022191,2]
[372496488,1752663089056,-460.0,0.00022191,2]
[372496489,1752663089066,-460.0,0.00022191,2]
[372496490,1752663089075,-1061.14,0.00022191,2]
[372496491,1752663089086,-684.08,0.00022191,2]
[372496492,1752663089095,-14730.83,0.00022191,2]
[372496493,1752663089105,-3566.5,0.00022191,2]
[372496494,1752663089115,-3262.8,0.00022191,2]
[372496495,1752663089125,-628.29,0.00022191,2]
[372496496,1752663089135,-460.0,0.00022191,2]
[372496497,1752663089146,-612.3,0.00022191,2]
[372496498,1752663089157,-460.0,0.00022191,2]
[372496499,1752663089167,-1225.77,0.00022191,2]
[372496500,1752663089179,-1692.42,0.00022191,2]
[372496501,1752663089191,-22442.02,0.00022191,2]
[372496502,1752663089202,-1745.31,0.00022191,2]
[372496503,1752663089211,-5682.68,0.00022191,2]
[372496504,1752663089223,-460.0,0.00022191,2]
[372496505,1752663089233,-158.50558987,0.00022191,2]
[372496506,1752663089243,-460.0,0.00022191,2]
[372496507,1752663089254,-460.0,0.00022191,2]
[372496508,1752663089266,-3509.68,0.00022191,2]
[372496509,1752663089275,-686.39,0.00022191,2]
[372496510,1752663089285,-1807.34,0.00022191,2]
[372496511,1752663089296,-4110.38,0.00022191,2]
[372496512,1752663089305,-460.0,0.00022191,2]
[372496513,1752663089315,-1598.24,0.00022191,2]
[372496514,1752663089324,-460.0,0.00022191,2]
[372496515,1752663089334,-4959.45,0.00022191,2]
[372496516,1752663089344,-949.55,0.00022191,2]
[372496517,1752663089354,-1841.85,0.00022191,2]
[372496518,1752663089364,-460.0,0.00022191,2]
[372496519,1752663089375,-2472.8,0.00022191,2]
[372496520,1752663089384,-460.0,0.00022191,2]
[372496521,1752663089393,-460.0,0.00022191,2]
[372496522,1752663089403,-3547.98,0.00022191,2]
[372496523,1752663089412,-58694.54,0.00022191,2]
[372496524,1752663089421,-603.39,0.00022191,2]
[372496525,1752663089431,-2993.43,0.00022191,2]
[372496526,1752663089440,-1447.83,0.00022191,2]
[372496527,1752663089449,-5628.71,0.00022191,2]
[372496528,1752663089459,-460.0,0.00022191,2]
[372496529,1752663089469,-1683.09,0.00022191,2]
[372496530,1752663089479,-460.0,0.00022191,2]
[372496531,1752663089488,-1096.81,0.00022191,2]
[372496532,1752663089498,-2285.96,0.00022191,2]
[372496533,1752663089508,-483.36,0.00022191,2]
[372496534,1752663089517,-1319.97,0.00022191,2]
[372496535,1752663089527,-460.0,0.00022191,2]
[372496536,1752663089537,-5147.01,0.00022191,2]
[372496537,1752663089547,-1144.35,0.00022191,2]
[372496538,1752663089557,-8010.56,0.00022191,2]
[372496539,1752663089566,-639.1,0.00022191,2]
[372496540,1752663089576,-739.23,0.00022191,2]
[372496541,1752663089585,-460.0,0.00022191,2]
[372496542,1752663089595,-6205.36,0.00022191,2]
[372496543,1752663089604,-510.71,0.00022191,2]
[372496544,1752663089614,-2249.11,0.00022191,2]
[372496545,1752663089624,-460.0,0.00022191,2]
[372496546,1752663089633,-4164.71,0.00022191,2]
[372496547,1752663089643,-6769.38,0.00022191,2]
[372496548,1752663089652,-2022.49,0.00022191,2]
[372496549,1752663089662,-460.0,0.00022191,2]
[372496550,1752663089672,-1115.74,0.00022191,2]
[372496551,1752663089681,-460.0,0.00022191,2]
[372496552,1752663089691,-460.0,0.00022191,2]
[372496553,1752663089700,-485.08,0.00022191,2]
[372496554,1752663089710,-795.42,0.00022191,2]
[372496555,1752663089720,-460.0,0.00022191,2]
[372496556,1752663089729,-460.0,0.00022191,2]
[372496557,1752663089739,-2986.83,0.00022191,2]
[372496558,1752663089749,-460.0,0.00022191,2]
[372496559,1752663089758,-830.15,0.00022191,2]
[372496560,1752663089768,-619.04,0.00022191,2]
[372496561,1752663089778,-3400.85,0.00022191,2]
[372496562,1752663089787,-1181.41,0.00022191,2]
[372496563,1752663089797,-1132.19,0.00022191,2]
[372496564,1752663089807,-1807.42,0.00022191,2]
[372496565,1752663089816,-460.0,0.00022191,2]
[372496566,1752663089826,-460.0,0.00022191,2]
[372496567,1752663089836,-2724.38,0.00022191,2]
[372496568,1752663089846,-135275.72,0.00022191,2]
[372496569,1752663089855,-1356.39,0.00022191,2]
[372496570,1752663089865,-3360.53,0.00022191,2]
[372496571,1752663089877,-460.0,0.00022191,2]
[372496572,1752663089887,-4311.63,0.00022191,2]
[372496573,1752663089896,-1607.81,0.00022191,2]
[372496574,1752663089906,-7249.88,0.00022191,2]
[372496575,1752663089915,-1218.65,0.00022191,2]
[372496576,1752663089925,-469.05,0.00022191,2]
[372496577,1752663089935,-878.69,0.00022191,2]
[372496578,1752663089944,-10952.53,0.00022191,2]
[372496579,1752663089954,-908.48,0.00022191,2]
[372496580,1752663089965,-151.70166086,0.00022191,2]
[372496581,1752663089975,-2188.41,0.00022191,2]
[372496582,1752663089985,-173.81353884,0.00022191,2]
[372496583,1752663089994,-1585.43,0.00022191,2]
[372496584,1752663090005,-460.0,0.00022191,2]
[372496585,1752663090015,-460.0,0.00022191,2]
[372496586,1752663090025,-463.59561988,0.00022191,2]
[372496587,1752663090035,-6833.92,0.00022191,2]
[372496588,1752663090044,-6933.38,0.00022191,2]
[372496589,1752663090055,-7163.36,0.00022191,2]
[372496590,1752663090064,-460.0,0.00022191,2]
[372496591,1752663090074,-460.0,0.00022191,2]
[372496592,1752663090084,-500.0,0.00022191,2]
[372496593,1752663090096,-500.0,0.00022191,2]
[372496594,1752663090106,-13647.01,0.00022191,2]
[372496595,1752663090116,-500.0,0.00022191,2]
[372496596,1752663090127,-1251.22,0.00022191,2]
[372496597,1752663090137,-500.0,0.00022191,2]
[372496598,1752663090146,-5595.33,0.00022191,2]
[372496599,1752663090156,-2582.73,0.00022191,2]
[372496600,1752663090167,-500.0,0.00022191,2]
[372496601,1752663090177,-743.27,0.00022191,2]
[372496602,1752663090189,-575.0,0.00022191,2]
[372496603,1752663090200,-1673.31,0.00022191,2]
[372496604,1752663090209,-8217.22,0.00022191,2]
[372496605,1752663090219,-460.0,0.00022191,2]
[372496606,1752663090230,-4826.81,0.00022191,2]
[372496607,1752663090239,-460.0,0.00022191,2]
[372496608,1752663090249,-6145.91,0.00022191,2]
[372496609,1752663090260,-1655.82,0.00022191,2]
[372496610,1752663090270,-460.0,0.00022191,2]
[372496611,1752663090280,-3760.87,0.00022191,2]
[372496612,1752663090290,-589.02,0.00022191,2]
[372496613,1752663090300,-4288.94,0.00022191,2]
[372496614,1752663090310,-13788.05,0.00022191,2]
[372496615,1752663090321,-460.0,0.00022191,2]
[372496616,1752663090331,-1267.17,0.00022191,2]
[372496617,1752663090340,-1974.88,0.00022191,2]
[372496618,1752663090350,-460.0,0.00022191,2]
[372496619,1752663090361,-464.21,0.00022191,2]
[372496620,1752663090373,-7127.48,0.00022191,2]
[372496621,1752663090383,-5381.58,0.00022191,2]
[372496622,1752663090393,-1882.82,0.00022191,2]
[372496623,1752663090403,-1745.67,0.00022191,2]
[372496624,1752663090413,-2017.87,0.00022191,2]
[372496625,1752663090423,-540.0,0.00022191,2]
[372496626,1752663090433,-6507.01,0.00022191,2]
[372496627,1752663090443,-2383.17,0.00022191,2]
[372496628,1752663090454,-460.0,0.00022191,2]
[372496629,1752663090466,-7346.25,0.00022191,2]
[372496630,1752663090477,-607.90511581,0.00022191,2]
[372496631,1752663090490,-16919.72,0.00022191,2]
[372496632,1752663090500,-460.0,0.00022191,2]
[372496633,1752663090510,-460.0,0.00022191,2]
[372496634,1752663090520,-1542.47,0.00022191,2]
[372496635,1752663090530,-3978.63,0.00022191,2]
[372496636,1752663090541,-460.0,0.00022191,2]
[372496637,1752663090550,-460.0,0.00022191,2]
[372496638,1752663090561,-480.26,0.00022191,2]
[372496639,1752663090573,-925.97,0.00022191,2]
[372496640,1752663090583,-10810.3,0.00022191,2]
[372496641,1752663090594,-612.19,0.00022191,2]
[372496642,1752663090604,-1020.48,0.00022191,2]
[372496643,1752663090614,-1531.25,0.00022191,2]
[372496644,1752663090625,-4266.26,0.00022191,2]
[372496645,1752663090636,-2510.73,0.00022191,2]
[372496646,1752663090645,-1572.04,0.00022191,2]
[372496647,1752663090657,-460.0,0.00022191,2]
[372496648,1752663090667,-2857.59,0.00022191,2]
[372496649,1752663090678,-505.70254198,0.00022191,2]
[372496650,1752663090688,-1995.47,0.00022191,2]
[372496651,1752663090698,-1157.09,0.00022191,2]
[372496652,1752663090800,-383.0,0.00022192,7]
[372496653,1752663090811,-849.0,0.00022192,7]
[372496654,1752663090821,-3047.99134125,0.000222,2]
[372496655,1752663090831,-210.72748344,0.000222,7]
[372496656,1752663090841,-463037.19,0.000222,7]
[372496657,1752663090850,-152.517987,0.000222,7]
[372496658,1752663090859,-301.717814,0.000222,7]
[372496659,1752663090869,-151.0,0.000222,7]
[372496660,1752663090879,-151.0,0.000222,7]
[372496661,1752663090889,-151.0,0.000222,7]
[372496662,1752663090898,-151.0,0.000222,7]
[372496663,1752663090908,-151.0,0.000222,7]
[372496664,1752663090917,-151.0,0.000222,7]
[372496665,1752663090927,-151.0,0.000222,7]
[372496666,1752663090936,-151.0,0.000222,7]
[372496667,1752663090946,-154.032486,0.000222,7]
[372496668,1752663090955,-154.032486,0.000222,7]
[372496669,1752663090966,-151.0,0.000222,7]
[372496670,1752663090975,-151.0,0.000222,7]
[372496671,1752663090985,-151.0,0.000222,7]
[372496672,1752663090994,-568.0,0.000222,2]
[372496673,1752663091004,-665.2959,0.000222,2]
[372496674,1752663091013,-665.2959,0.000222,2]
[372496675,1752663091023,-476.61752775,0.000222,7]
[372496676,1752663091032,-1138.2449,0.000222,2]
[372496677,1752663091042,-1138.2449,0.000222,2]
[372496678,1752663091051,-168.0,0.00022204,2]
[372496679,1752663091061,-168.0,0.00022208,2]
[372496680,1752663091070,-961.2,0.00022217,15]
[372496681,1752663091080,-169.45,0.00022228,4]
[372496682,1752663091089,-172.8,0.00022228,4]
[372496683,1752663091099,-154.28,0.00022228,4]
[372496684,1752663091108,-449.46842246,0.00022228,2]
[372496685,1752663091117,-168.0,0.00022255,2]
[372496686,1752663091127,-427.40758553,0.00022255,2]
[372496687,1752663091137,-400.0,0.0002227,2]
[372496688,1752663091147,-168.0,0.00022273,2]
[372496689,1752663091157,-168.0,0.00022303,2]
[372496690,1752663091166,-208.0,0.0002232,2]
[372496691,1752663091177,-212.0,0.0002232,2]
[372496692,1752663091194,-202.0,0.0002232,2]
[372496693,1752663091205,-3327.52819175,0.00022328,2]
[372496694,1752663091215,-250.0,0.00022328,2]
[372496695,1752663091226,-187.07473204,0.00022328,2]
[372496696,1752663091236,-150.0,0.00022328,2]
[372496697,1752663091245,-500.0,0.00022328,2]
[372496698,1752663091255,-546.0,0.00022328,2]
[372496699,1752663091265,-500.0,0.00022328,2]
[372496700,1752663091275,-158.43213329,0.00022328,2]
[372496701,1752663091286,-500.0,0.00022328,2]
[372496702,1752663091296,-455.0,0.00022328,2]
[372496703,1752663091305,-500.0,0.00022328,2]
[372496704,1752663091314,-500.0,0.00022328,2]
[372496705,1752663091324,-474.0,0.00022328,2]
[372496706,1752663091333,-500.0,0.00022328,2]
[372496707,1752663091343,-5123.0,0.00022328,2]
[372496708,1752663091353,-539.0,0.00022328,2]
[372496709,1752663091363,-150.0,0.00022328,2]
[372496710,1752663091373,-500.0,0.00022328,2]
[372496711,1752663091383,-500.0,0.00022328,2]
[372496712,1752663091393,-500.0,0.00022328,2]
[372496713,1752663091403,-224.28007103,0.00022328,2]
[372496714,1752663091413,-543.0,0.00022328,2]
[372496715,1752663091423,-500.0,0.00022328,2]
[372496716,1752663091432,-150.0,0.00022328,2]
[372496717,1752663091441,-1846.0,0.00022328,2]
[372496718,1752663091450,-500.0,0.00022328,2]
[372496719,1752663091460,-1539.29,0.00022328,2]
[372496720,1752663091469,-151.0,0.00022328,7]
[372496721,1752663091478,-151.0,0.00022328,7]
[372496722,1752663091487,-151.0,0.00022328,7]
[372496723,1752663091497,-151.0,0.00022328,7]
[372496724,1752663091506,-151.0,0.00022328,7]
[372496725,1752663091516,-151.0,0.00022328,7]
[372496726,1752663091525,-153.776333,0.00022328,7]
[372496727,1752663091535,-151.0,0.00022328,7]
[372496728,1752663091545,-151.0,0.00022328,7]
[372496729,1752663091554,-151.0,0.00022328,7]
[372496730,1752663091564,-217.089749,0.00022328,7]
[372496731,1752663091574,-151.0,0.00022328,7]
[372496732,1752663091583,-226.819734,0.00022328,7]
[372496733,1752663091593,-151.0,0.00022328,7]
[372496734,1752663091602,-151.0,0.00022328,7]